[Event "44th Chess Olympiad Open 2022"]
[Site "Chennai"]
[Date "2022.07.31"]
[Round "3.62"]
[White "Salih, Akar Ali Salih"]
[Black "Abdirahman Omar Sheikh"]
[Result "1-0"]
[WhiteElo "2243"]
[BlackElo "2051"]
[Annotator "RC"]
[PlyCount "67"]
[EventDate "2022.??.??"]
[TimeControl "60"]

1. e4 {[%emt 0:00:32]} e5 {[%emt 0:00:34]} 2. Nf3 {[%emt 0:00:00]} Nc6 {
[%emt 0:00:04]} 3. Bb5 {[%emt 0:00:04]} a6 {[%emt 0:00:11]} 4. Ba4 {[%emt 0:00:
00]} g6 {[%emt 0:00:31]} 5. O-O {[%emt 0:09:10]} b5 {[%emt 0:00:55]} 6. Bb3 {
[%emt 0:00:06]} Bg7 {[%emt 0:00:59]} 7. c3 {[%emt 0:00:07]} Nge7 {[%emt 0:00:
00]} 8. d4 {[%emt 0:02:44]} exd4 {[%emt 0:00:04]} 9. cxd4 {[%emt 0:00:18]} Na5
{[%emt 0:04:19]} 10. Bc2 {[%emt 0:02:04]} O-O {[%emt 0:01:42]} 11. d5 {[%emt 0:
00:00]} d6 {[%emt 0:00:24]} 12. Nc3 {[%emt 0:00:49]} Bg4 {[%emt 0:04:42]} 13.
h3 {[%emt 0:01:29]} Bxf3 {[%emt 0:00:09]} 14. Qxf3 {[%emt 0:00:06]} f5 {
[%emt 0:00:06]} 15. Bg5 {[%emt 0:01:43]} Bf6 {[%emt 0:12:23]} 16. Bxf6 {
[%emt 0:10:52]} Rxf6 {[%emt 0:00:05]} 17. exf5 {[%emt 0:25:58]} Nxf5 {[%emt 0:
00:00]} 18. Ne4 {[%emt 0:00:18]} Rf7 {[%emt 0:00:37]} 19. Qc3 {[%emt 0:00:28]}
Nc4 {[%emt 0:01:51]} 20. b3 {[%emt 0:00:59]} Ne5 {[%emt 0:01:46]} 21. f4 {
[%emt 0:00:42]} Nd7 {[%emt 0:01:22]} 22. g4 {[%emt 0:01:05]} Ng7 {[%emt 0:00:
00]} 23. Rae1 {[%emt 0:03:53]} h6 {[%emt 0:10:39]} 24. g5 {[%emt 0:18:37]} Nh5
{[%emt 0:14:52]} 25. gxh6 {[%emt 0:05:03]} Nf8 {[%emt 0:15:27]} 26. Ng5 {
[%emt 0:01:38]} Rf6 {[%emt 0:16:56]} 27. Bd1 {[%emt 0:02:20]} b4 {[%emt 0:00:
00]} 28. Qe3 {[%emt 0:00:44]} Nh7 {[%emt 0:01:22]} 29. f5 {[%emt 0:02:18]} Qf8
{[%emt 0:01:55]} 30. Ne6 {[%emt 0:01:08]} Qf7 {[%emt 0:00:38]} 31. fxg6 {
[%emt 0:01:19]} Rxg6+ {[%emt 0:00:22]} 32. Kh2 {[%emt 0:00:13]} Rf6 {[%emt 0:
00:00]} 33. Bxh5 {[%emt 0:00:49]} Qxh5 {[%emt 0:01:21]} 34. Rxf6 {[%emt 0:00:
00]} 1-0

[Event "44th Chess Olympiad Open 2022"]
[Site "Chennai"]
[Date "2022.07.31"]
[Round "3.62"]
[White "Mohammed, Zozek Salah Mohamme"]
[Black "Islam Sh.Nour, Kassim"]
[Result "1-0"]
[WhiteElo "2232"]
[BlackElo "1873"]
[Annotator "RC"]
[PlyCount "117"]
[EventDate "2022.??.??"]
[TimeControl "60"]

1. d4 {[%emt 0:01:14]} b6 {[%emt 0:00:13]} 2. c4 {[%emt 0:00:06]} e6 {[%emt 0:
00:00]} 3. Nf3 {[%emt 0:00:04]} Bb7 {[%emt 0:00:40]} 4. g3 {[%emt 0:00:06]} Nf6
{[%emt 0:00:06]} 5. Bg2 {[%emt 0:00:09]} Bb4+ {[%emt 0:00:39]} 6. Bd2 {[%emt 0:
00:00]} Be7 {[%emt 0:00:07]} 7. O-O {[%emt 0:00:10]} O-O {[%emt 0:00:09]} 8.
Nc3 {[%emt 0:01:08]} Bb4 {[%emt 0:03:46]} 9. Rc1 {[%emt 0:09:56]} Bxc3 {
[%emt 0:04:43]} 10. Bxc3 {[%emt 0:01:20]} d6 {[%emt 0:00:51]} 11. b3 {[%emt 0:
00:00]} Nbd7 {[%emt 0:00:24]} 12. Qc2 {[%emt 0:00:27]} Ne4 {[%emt 0:01:43]} 13.
Bb2 {[%emt 0:04:14]} f5 {[%emt 0:02:08]} 14. Rfd1 {[%emt 0:05:52]} Rb8 {
[%emt 0:05:51]} 15. Ne1 {[%emt 0:09:49]} Qe8 {[%emt 0:02:31]} 16. Nd3 {[%emt 0:
00:00]} Qf7 {[%emt 0:06:02]} 17. e3 {[%emt 0:05:00]} Qh5 {[%emt 0:08:00]} 18.
Nf4 {[%emt 0:03:54]} Qh6 {[%emt 0:00:09]} 19. d5 {[%emt 0:01:23]} e5 {[%emt 0:
00:00]} 20. Ne6 {[%emt 0:02:46]} Rf7 {[%emt 0:06:50]} 21. Re1 {[%emt 0:15:10]}
Ndf6 {[%emt 0:04:21]} 22. f3 {[%emt 0:03:51]} Nc5 {[%emt 0:02:56]} 23. Nxc5 {
[%emt 0:04:03]} bxc5 {[%emt 0:00:09]} 24. Rcd1 {[%emt 0:06:15]} Re8 {[%emt 0:
00:00]} 25. Qd2 {[%emt 0:04:58]} Bc8 {[%emt 0:04:53]} 26. a3 {[%emt 0:01:08]}
g5 {[%emt 0:04:00]} 27. b4 {[%emt 0:04:28]} cxb4 {[%emt 0:00:27]} 28. axb4 {
[%emt 0:00:01]} a6 {[%emt 0:03:31]} 29. c5 {[%emt 0:08:08]} Bb7 {[%emt 0:04:32]
} 30. c6 {[%emt 0:00:05]} Bc8 {[%emt 0:00:01]} 31. f4 {[%emt 0:00:29]} e4 {
[%emt 0:05:44]} 32. Qd4 {[%emt 0:01:44]} Ref8 {[%emt 0:06:51]} 33. Ra1 {
[%emt 0:01:02]} gxf4 {[%emt 0:01:15]} 34. exf4 {[%emt 0:00:17]} Rg7 {[%emt 0:
00:00]} 35. Ra3 {[%emt 0:01:50]} Qg6 {[%emt 0:02:20]} 36. b5 {[%emt 0:01:28]}
axb5 {[%emt 0:00:10]} 37. Ra8 {[%emt 0:00:01]} h5 {[%emt 0:00:33]} 38. Rxc8 {
[%emt 0:00:36]} Rxc8 {[%emt 0:00:07]} 39. Qxf6 {[%emt 0:00:04]} Qxf6 {[%emt 0:
00:00]} 40. Bxf6 {[%emt 0:00:02]} Rf7 {[%emt 0:00:29]} 41. Bc3 {[%emt 0:31:11]}
Ra8 {[%emt 0:32:05]} 42. Rb1 {[%emt 0:00:00]} Ra3 {[%emt 0:00:00]} 43. Be1 {
[%emt 0:00:00]} Rf8 {[%emt 0:00:00]} 44. Rxb5 {[%emt 0:00:00]} Ra1 {[%emt 0:00:
00]} 45. Kf1 {[%emt 0:00:00]} Rfa8 {[%emt 0:00:00]} 46. Rb2 {[%emt 0:00:00]}
Rd1 {[%emt 0:00:00]} 47. Kf2 {[%emt 0:03:38]} Rxd5 {[%emt 0:00:00]} 48. Rc2 {
[%emt 0:00:26]} Rd1 {[%emt 0:00:00]} 49. Bh3 {[%emt 0:00:29]} Rd5 {[%emt 0:00:
00]} 50. Bf1 {[%emt 0:00:01]} Kh7 {[%emt 0:00:00]} 51. Bc4 {[%emt 0:00:36]} Rd1
{[%emt 0:02:11]} 52. Be2 {[%emt 0:00:22]} e3+ {[%emt 0:01:24]} 53. Kf1 {
[%emt 0:00:01]} Rb1 {[%emt 0:02:31]} 54. Bd3 {[%emt 0:00:04]} d5 {[%emt 0:00:
00]} 55. Bxf5+ {[%emt 0:00:41]} Kh6 {[%emt 0:00:38]} 56. Rc3 {[%emt 0:01:15]}
e2+ {[%emt 0:01:54]} 57. Kf2 {[%emt 0:00:17]} Rb2 {[%emt 0:02:25]} 58. Re3 {
[%emt 0:00:34]} Ra6 {[%emt 0:01:20]} 59. Re7 {[%emt 0:00:07]} 1-0

[Event "44th Chess Olympiad Open 2022"]
[Site "Chennai"]
[Date "2022.07.31"]
[Round "3.62"]
[White "Ali Abdullahi, Farah"]
[Black "Ahmed, Ali Layth Ahmed"]
[Result "0-1"]
[WhiteElo "1892"]
[BlackElo "2249"]
[Annotator "RC"]
[PlyCount "96"]
[EventDate "2022.??.??"]
[TimeControl "60"]

1. d4 {[%emt 0:00:01]} Nf6 {[%emt 0:02:50]} 2. c4 {[%emt 0:00:01]} e6 {[%emt 0:
00:00]} 3. Nf3 {[%emt 0:00:25]} Bb4+ {[%emt 0:00:24]} 4. Bd2 {[%emt 0:00:26]}
a5 {[%emt 0:00:10]} 5. Nc3 {[%emt 0:00:33]} O-O {[%emt 0:03:47]} 6. e3 {
[%emt 0:00:25]} d5 {[%emt 0:01:54]} 7. Bd3 {[%emt 0:05:00]} b6 {[%emt 0:09:36]}
8. a3 {[%emt 0:02:59]} Bxc3 {[%emt 0:00:27]} 9. Bxc3 {[%emt 0:00:21]} Bb7 {
[%emt 0:03:18]} 10. c5 {[%emt 0:10:32]} Ne4 {[%emt 0:03:52]} 11. cxb6 {[%emt 0:
00:00]} cxb6 {[%emt 0:01:45]} 12. Rc1 {[%emt 0:01:07]} Ba6 {[%emt 0:05:18]} 13.
Bxa6 {[%emt 0:05:53]} Nxa6 {[%emt 0:04:18]} 14. O-O {[%emt 0:01:57]} Qd6 {
[%emt 0:06:51]} 15. Qd3 {[%emt 0:00:45]} Nc7 {[%emt 0:10:28]} 16. Rc2 {[%emt 0:
00:00]} Rfc8 {[%emt 0:04:23]} 17. Rfc1 {[%emt 0:02:05]} Ne8 {[%emt 0:07:47]}
18. Be1 {[%emt 0:11:58]} Rxc2 {[%emt 0:02:49]} 19. Qxc2 {[%emt 0:08:36]} Qd8 {
[%emt 0:00:17]} 20. Ne5 {[%emt 0:10:16]} N4d6 {[%emt 0:03:02]} 21. f3 {[%emt 0:
00:00]} Rc8 {[%emt 0:02:39]} 22. Qd1 {[%emt 0:01:44]} f6 {[%emt 0:03:34]} 23.
Nd3 {[%emt 0:00:48]} Nc4 {[%emt 0:01:07]} 24. Kf2 {[%emt 0:00:55]} Ned6 {
[%emt 0:02:57]} 25. a4 {[%emt 0:03:57]} Nf5 {[%emt 0:00:25]} 26. Bd2 {[%emt 0:
00:00]} Qd7 {[%emt 0:03:25]} 27. b3 {[%emt 0:02:07]} Ncd6 {[%emt 0:00:41]} 28.
g4 {[%emt 0:03:44]} Ne7 {[%emt 0:00:29]} 29. h3 {[%emt 0:00:41]} Nc6 {[%emt 0:
00:00]} 30. Bc3 {[%emt 0:01:01]} Rf8 {[%emt 0:04:36]} 31. Qe2 {[%emt 0:00:38]}
Nf7 {[%emt 0:03:28]} 32. Kg2 {[%emt 0:00:47]} e5 {[%emt 0:00:35]} 33. dxe5 {
[%emt 0:01:05]} fxe5 {[%emt 0:00:09]} 34. Rd1 {[%emt 0:01:05]} d4 {[%emt 0:00:
00]} 35. exd4 {[%emt 0:02:14]} exd4 {[%emt 0:00:22]} 36. Ne1 {[%emt 0:03:34]}
Rd8 {[%emt 0:03:50]} 37. Qb5 {[%emt 0:04:55]} Qe6 {[%emt 0:00:39]} 38. Bd2 {
[%emt 0:02:00]} d3 {[%emt 0:00:53]} 39. Nxd3 {[%emt 0:01:34]} Nd4 {[%emt 0:00:
00]} 40. Nf4 {[%emt 0:00:49]} Qxb3 {[%emt 0:00:46]} 41. Qf1 {[%emt 0:32:05]}
Qxa4 {[%emt 0:30:45]} 42. Be3 {[%emt 0:00:45]} Ne5 {[%emt 0:00:00]} 43. Rb1 {
[%emt 0:00:00]} Qc2+ {[%emt 0:00:00]} 44. Kg3 {[%emt 0:00:00]} Ndxf3 {[%emt 0:
00:00]} 45. Ng2 {[%emt 0:00:00]} Nd2 {[%emt 0:00:00]} 46. Bxd2 {[%emt 0:00:00]}
Rxd2 {[%emt 0:00:00]} 47. Nf4 {[%emt 0:01:37]} Qc3+ {[%emt 0:00:00]} 48. Kh4 {
[%emt 0:01:45]} Nf3+ {[%emt 0:00:00]} 0-1

[Event "44th Chess Olympiad Open 2022"]
[Site "Chennai"]
[Date "2022.07.31"]
[Round "3.62"]
[White "Abdulkadir Mohamed Warsame"]
[Black "Rabeea, Sabah Nori"]
[Result "1/2-1/2"]
[WhiteElo "1820"]
[BlackElo "2122"]
[Annotator "RC"]
[PlyCount "83"]
[EventDate "2022.??.??"]
[TimeControl "60"]

1. c4 {[%emt 0:00:04]} e6 {[%emt 0:00:28]} 2. Nc3 {[%emt 0:00:51]} d5 {[%emt 0:
00:00]} 3. d4 {[%emt 0:00:45]} Nf6 {[%emt 0:00:10]} 4. cxd5 {[%emt 0:00:11]}
exd5 {[%emt 0:00:18]} 5. Bg5 {[%emt 0:00:19]} Nbd7 {[%emt 0:01:24]} 6. e3 {
[%emt 0:01:14]} c6 {[%emt 0:02:30]} 7. Qc2 Qa5 {[%emt 0:03:00]} 8. Bd3 {
[%emt 0:08:36]} Bb4 9. Nf3 O-O 10. O-O Re8 11. a3 Bxc3 12. Qxc3 Qxc3 13. bxc3
Ne4 14. c4 dxc4 15. Bxc4 Nb6 16. Bd3 f6 17. Bf4 g5 18. Bc7 Nd5 19. Ba5 b6 20.
Be1 Bb7 21. Nd2 Nd6 22. Nc4 Nxc4 23. Bxc4 Rac8 24. Bd2 c5 25. Rac1 cxd4 26.
exd4 Rxc4 27. Rxc4 Ba6 28. Ra4 Bxf1 29. Kxf1 Re7 30. g3 Kf7 31. f3 a5 32. Rc4
Re3 33. Rc7+ Nxc7 34. Bxe3 Ke6 35. Ke2 Kd5 36. Kd3 Nb5 37. a4 Nd6 38. g4 h6 39.
f4 Nc4 40. fxg5 hxg5 41. Bc1 Nd6 42. Bd2 {[%emt 0:44:05]} 1/2-1/2

[Event "44th Chess Olympiad Open 2022"]
[Site "Chennai"]
[Date "2022.07.31"]
[Round "3.63"]
[White "Kwon, Sehyun"]
[Black "Namale, Ben Nguku"]
[Result "1-0"]
[WhiteElo "2225"]
[BlackElo "1962"]
[Annotator "RC"]
[PlyCount "107"]
[EventDate "2022.??.??"]
[TimeControl "60"]

1. e4 {[%emt 0:00:12]} c6 {[%emt 0:00:04]} 2. d4 {[%emt 0:00:53]} d5 {[%emt 0:
00:00]} 3. exd5 {[%emt 0:00:18]} cxd5 {[%emt 0:00:09]} 4. c4 {[%emt 0:00:31]}
Nf6 {[%emt 0:01:13]} 5. Nc3 {[%emt 0:00:20]} Nc6 {[%emt 0:00:31]} 6. Bg5 {
[%emt 0:00:51]} e6 {[%emt 0:04:33]} 7. Nf3 {[%emt 0:00:43]} dxc4 {[%emt 0:00:
00]} 8. Bxc4 {[%emt 0:01:18]} Be7 {[%emt 0:02:05]} 9. O-O {[%emt 0:04:45]} O-O
{[%emt 0:01:08]} 10. Re1 {[%emt 0:11:45]} a6 {[%emt 0:04:51]} 11. a3 {[%emt 0:
00:00]} b5 {[%emt 0:04:48]} 12. Ba2 {[%emt 0:03:19]} b4 {[%emt 0:01:17]} 13.
Ne2 {[%emt 0:08:43]} Bb7 {[%emt 0:11:54]} 14. Ng3 {[%emt 0:07:38]} h6 {[%emt 0:
00:00]} 15. Bf4 {[%emt 0:08:21]} Qb6 {[%emt 0:03:17]} 16. Qd3 {[%emt 0:04:58]}
Rfd8 {[%emt 0:07:53]} 17. Rad1 {[%emt 0:02:34]} a5 {[%emt 0:02:01]} 18. Be3 {
[%emt 0:06:36]} Ba6 {[%emt 0:11:10]} 19. Qc2 {[%emt 0:02:39]} Qb7 {[%emt 0:00:
00]} 20. Bb1 {[%emt 0:05:13]} b3 {[%emt 0:07:57]} 21. Qd2 {[%emt 0:00:27]} Bf8
{[%emt 0:02:47]} 22. Ne4 {[%emt 0:02:40]} Nd5 {[%emt 0:01:13]} 23. Nc3 {
[%emt 0:00:51]} Nxc3 {[%emt 0:01:11]} 24. Qxc3 {[%emt 0:00:09]} Ne7 {[%emt 0:
00:00]} 25. Bf4 {[%emt 0:11:03]} Nd5 {[%emt 0:01:38]} 26. Qd2 {[%emt 0:00:03]}
Nxf4 {[%emt 0:01:00]} 27. Qxf4 {[%emt 0:00:03]} Bc4 {[%emt 0:02:30]} 28. Ne5 {
[%emt 0:03:16]} Bd5 {[%emt 0:04:32]} 29. Nxf7 {[%emt 0:01:42]} Rd7 {[%emt 0:00:
00]} 30. Ne5 {[%emt 0:00:26]} Bd6 {[%emt 0:00:27]} 31. Qg4 {[%emt 0:01:01]}
Bxe5 {[%emt 0:00:57]} 32. dxe5 {[%emt 0:01:12]} Rf7 {[%emt 0:02:13]} 33. h3 {
[%emt 0:01:24]} Qb6 {[%emt 0:00:55]} 34. Re3 {[%emt 0:01:13]} Rd8 {[%emt 0:00:
00]} 35. Qh4 {[%emt 0:01:08]} Rdf8 {[%emt 0:00:14]} 36. Re2 {[%emt 0:00:35]}
Rf4 {[%emt 0:00:37]} 37. Qg3 {[%emt 0:00:04]} g5 {[%emt 0:00:37]} 38. Qd3 {
[%emt 0:00:46]} Qb7 {[%emt 0:00:26]} 39. Qg6+ {[%emt 0:00:44]} Qg7 {[%emt 0:00:
00]} 40. Qxg7+ {[%emt 0:00:33]} Kxg7 {[%emt 0:00:02]} 41. Rc1 {[%emt 0:11:53]}
Rd4 {[%emt 0:02:08]} 42. f3 {[%emt 0:03:34]} h5 {[%emt 0:04:45]} 43. Kf2 {
[%emt 0:04:57]} g4 {[%emt 0:01:35]} 44. Rc7+ {[%emt 0:01:06]} Kg8 {[%emt 0:00:
00]} 45. Ke3 {[%emt 0:03:05]} Rdf4 {[%emt 0:00:18]} 46. hxg4 {[%emt 0:01:40]}
hxg4 {[%emt 0:00:05]} 47. Bh7+ {[%emt 0:00:20]} Kh8 {[%emt 0:00:07]} 48. Be4 {
[%emt 0:00:20]} Bxe4 {[%emt 0:00:32]} 49. fxe4 {[%emt 0:00:08]} g3 {[%emt 0:00:
00]} 50. Rd2 {[%emt 0:01:42]} Rf2 {[%emt 0:01:58]} 51. Rdd7 {[%emt 0:00:38]}
Rb8 {[%emt 0:00:01]} 52. Rh7+ {[%emt 0:00:23]} Kg8 {[%emt 0:00:03]} 53. Rcg7+ {
[%emt 0:00:04]} Kf8 {[%emt 0:00:13]} 54. Rxg3 {[%emt 0:00:10]} 1-0

[Event "44th Chess Olympiad Open 2022"]
[Site "Chennai"]
[Date "2022.07.31"]
[Round "3.63"]
[White "Li, Georgiy"]
[Black "Mukoko, Isaac"]
[Result "1-0"]
[WhiteElo "1994"]
[BlackElo "1805"]
[Annotator "NA RC"]
[PlyCount "85"]
[EventDate "2022.??.??"]
[TimeControl "60"]

1. c4 {[%emt 0:00:09]} c5 {[%emt 0:00:21]} 2. Nf3 {[%emt 0:00:20]} g6 {[%emt 0:
00:00]} 3. d4 {[%emt 0:00:40]} cxd4 {[%emt 0:01:17]} 4. Nxd4 {[%emt 0:00:14]}
Bg7 {[%emt 0:00:18]} 5. Nc3 {[%emt 0:00:38]} Nc6 {[%emt 0:01:37]} 6. Nc2 {
[%emt 0:01:39]} Bxc3+ {[%emt 0:05:26]} 7. bxc3 {[%emt 0:00:09]} Qa5 {[%emt 0:
00:00]} 8. Bd2 {[%emt 0:01:34]} Nf6 {[%emt 0:00:55]} 9. f3 {[%emt 0:00:52]} d6
{[%emt 0:08:38]} 10. e4 {[%emt 0:00:39]} Bd7 {[%emt 0:07:16]} 11. Ne3 {[%emt 0:
00:00]} Rc8 {[%emt 0:10:21]} 12. Qb3 {[%emt 0:00:28]} Qc7 {[%emt 0:01:40]} 13.
Nd5 {[%emt 0:01:01]} Nxd5 {[%emt 0:02:24]} 14. cxd5 {[%emt 0:00:19]} Na5 {
[%emt 0:00:42]} 15. Qb4 {[%emt 0:00:26]} h5 {[%emt 0:01:35]} 16. Qd4 {[%emt 0:
00:00]} f6 {[%emt 0:06:07]} 17. Qxa7 {[%emt 0:00:45]} Kf7 {[%emt 0:00:39]} 18.
Rb1 {[%emt 0:00:55]} Ra8 {[%emt 0:04:05]} 19. Qd4 {[%emt 0:00:21]} b5 {[%emt 0:
00:00]} 20. Rb2 {[%emt 0:00:59]} Rhb8 {[%emt 0:02:07]} 21. Kf2 {[%emt 0:01:20]}
Nb7 {[%emt 0:02:01]} 22. Be2 {[%emt 0:00:55]} Ra4 {[%emt 0:00:38]} 23. Qe3 {
[%emt 0:00:27]} Nc5 {[%emt 0:06:46]} 24. Rhb1 {[%emt 0:01:18]} Qa7 {[%emt 0:00:
00]} 25. Ra1 {[%emt 0:02:51]} Ra3 {[%emt 0:00:51]} 26. Kg3 {[%emt 0:02:00]} g5
{[%emt 0:01:26]} 27. h4 {[%emt 0:03:17]} b4 {[%emt 0:03:10]} 28. hxg5 {[%emt 0:
00:00]} bxc3 {[%emt 0:04:41]} 29. g6+ {[%emt 0:01:07]} Ke8 {[%emt 0:10:05]} 30.
Rxb8+ {[%emt 0:00:24]} Qxb8 {[%emt 0:00:21]} 31. Qh6 {[%emt 0:00:37]} Bc8 {
[%emt 0:02:07]} 32. Bc1 {[%emt 0:00:47]} Ra8 {[%emt 0:02:44]} 33. g7 {[%emt 0:
00:00]} h4+ {[%emt 0:03:44]} 34. Kh2 {[%emt 0:00:18]} Kd7 {[%emt 0:00:35]} 35.
g8=Q {[%emt 0:00:31]} c2 {[%emt 0:00:29]} 36. Qhh8 {[%emt 0:01:03]} Kc7 {
[%emt 0:00:39]} 37. Qd8+ {[%emt 0:00:45]} Kb7 {[%emt 0:00:21]} 38. Qxe7+ {
[%emt 0:00:32]} Nd7 {[%emt 0:00:28]} 39. Qhxf6 {[%emt 0:00:42]} Qc7 {[%emt 0:
00:00]} 40. Qfxd6 {[%emt 0:00:47]} Qc3 {[%emt 0:01:32]} 41. Qb4+ {[%emt 0:00:
00]} Qxb4 {[%emt 0:30:16]} 42. Qxb4+ {[%emt 0:00:19]} Nb6 {[%emt 0:00:49]} 43.
Be3 {[%emt 0:00:18]} 1-0

[Event "44th Chess Olympiad Open 2022"]
[Site "Chennai"]
[Date "2022.07.31"]
[Round "3.63"]
[White "Njoroge, Martin"]
[Black "Kim, Changhoon"]
[Result "1-0"]
[WhiteElo "1973"]
[BlackElo "1827"]
[Annotator "RC"]
[PlyCount "129"]
[EventDate "2022.??.??"]
[TimeControl "60"]

1. d4 {[%emt 0:00:30]} d5 {[%emt 0:00:17]} 2. c4 {[%emt 0:02:23]} c6 {[%emt 0:
00:00]} 3. Nc3 {[%emt 0:00:09]} Nf6 {[%emt 0:00:12]} 4. Nf3 {[%emt 0:00:13]} e6
{[%emt 0:00:36]} 5. e3 {[%emt 0:02:42]} a6 {[%emt 0:00:32]} 6. Bd3 {[%emt 0:00:
00]} dxc4 {[%emt 0:00:22]} 7. Bxc4 {[%emt 0:00:02]} b5 {[%emt 0:00:16]} 8. Bd3
{[%emt 0:00:07]} c5 {[%emt 0:00:12]} 9. O-O {[%emt 0:00:08]} Nbd7 {[%emt 0:00:
00]} 10. Qe2 {[%emt 0:01:07]} Bb7 {[%emt 0:00:10]} 11. Rd1 {[%emt 0:00:18]} Qb8
{[%emt 0:01:45]} 12. e4 {[%emt 0:02:56]} cxd4 {[%emt 0:00:34]} 13. Nxd4 {
[%emt 0:00:26]} Bd6 {[%emt 0:02:13]} 14. h3 {[%emt 0:02:31]} O-O {[%emt 0:00:
00]} 15. a3 {[%emt 0:02:50]} Rd8 {[%emt 0:15:34]} 16. Bg5 {[%emt 0:01:36]} Bh2+
{[%emt 0:00:31]} 17. Kh1 {[%emt 0:01:31]} Bf4 {[%emt 0:00:36]} 18. Bxf6 {
[%emt 0:12:37]} Nxf6 {[%emt 0:00:24]} 19. Bc2 {[%emt 0:01:02]} Qe5 {[%emt 0:00:
00]} 20. Nf3 {[%emt 0:01:02]} Qh5 {[%emt 0:00:55]} 21. Rxd8+ {[%emt 0:03:30]}
Rxd8 {[%emt 0:00:07]} 22. Rd1 {[%emt 0:00:25]} Re8 {[%emt 0:18:25]} 23. Kg1 {
[%emt 0:02:16]} Qc5 {[%emt 0:04:36]} 24. Qd3 {[%emt 0:14:30]} Bc7 {[%emt 0:00:
00]} 25. Bb1 {[%emt 0:05:30]} g6 {[%emt 0:09:49]} 26. b4 {[%emt 0:09:23]} Qb6 {
[%emt 0:04:10]} 27. Qc2 {[%emt 0:02:48]} Rd8 {[%emt 0:01:55]} 28. Rxd8+ {
[%emt 0:01:30]} Bxd8 {[%emt 0:00:01]} 29. Qd2 {[%emt 0:01:52]} Be7 {[%emt 0:00:
00]} 30. Qf4 {[%emt 0:05:13]} Qc6 {[%emt 0:08:09]} 31. Qd2 {[%emt 0:11:28]} Kg7
{[%emt 0:01:03]} 32. Qd4 {[%emt 0:00:32]} Qd7 {[%emt 0:01:16]} 33. Qe3 {
[%emt 0:01:07]} Qd8 {[%emt 0:00:57]} 34. Qa7 {[%emt 0:00:31]} Qc8 {[%emt 0:00:
00]} 35. Qd4 {[%emt 0:00:21]} Qd7 {[%emt 0:00:43]} 36. Qa7 {[%emt 0:00:12]} Bc8
{[%emt 0:00:53]} 37. Qe3 {[%emt 0:00:29]} Qd8 {[%emt 0:00:52]} 38. Ne5 {
[%emt 0:01:00]} Qc7 {[%emt 0:00:38]} 39. Nf3 {[%emt 0:00:49]} Qd8 {[%emt 0:00:
00]} 40. Ne5 {[%emt 0:00:21]} Qc7 {[%emt 0:00:12]} 41. Nf3 {[%emt 0:30:10]} h6
{[%emt 0:30:08]} 42. Qd4 {[%emt 0:00:37]} Qd8 {[%emt 0:00:00]} 43. Qe3 {
[%emt 0:00:00]} Bf8 {[%emt 0:00:00]} 44. e5 {[%emt 0:00:00]} Ne8 {[%emt 0:00:
00]} 45. h4 {[%emt 0:00:00]} h5 {[%emt 0:00:00]} 46. Kh2 {[%emt 0:00:00]} Kg8 {
[%emt 0:00:00]} 47. Ne4 {[%emt 0:00:00]} Bg7 {[%emt 0:00:00]} 48. Neg5 {
[%emt 0:00:00]} Bb7 {[%emt 0:00:22]} 49. Be4 {[%emt 0:01:26]} Bxe4 {[%emt 0:00:
00]} 50. Qxe4 {[%emt 0:00:08]} Qd7 {[%emt 0:02:31]} 51. Qa8 {[%emt 0:00:55]}
Bf8 {[%emt 0:02:38]} 52. Qxa6 {[%emt 0:00:41]} Nc7 {[%emt 0:00:27]} 53. Qb7 {
[%emt 0:00:42]} Be7 {[%emt 0:00:25]} 54. Ne4 {[%emt 0:01:57]} Qd8 {[%emt 0:00:
00]} 55. Nfg5 {[%emt 0:01:23]} Kg7 {[%emt 0:00:40]} 56. g3 {[%emt 0:01:44]} Qd7
{[%emt 0:00:40]} 57. Nc5 {[%emt 0:00:35]} Bxc5 {[%emt 0:00:19]} 58. bxc5 {
[%emt 0:00:07]} Qe7 {[%emt 0:00:09]} 59. Ne4 {[%emt 0:00:33]} Qd8 {[%emt 0:00:
00]} 60. Nf6 {[%emt 0:00:27]} Qd2 {[%emt 0:00:26]} 61. Kg2 {[%emt 0:00:37]} Nd5
{[%emt 0:00:33]} 62. Nxd5 {[%emt 0:00:14]} exd5 {[%emt 0:00:20]} 63. e6 {
[%emt 0:00:10]} Qd4 {[%emt 0:00:38]} 64. Qxf7+ {[%emt 0:00:19]} Kh6 {[%emt 0:
00:00]} 65. e7 {[%emt 0:00:14]} 1-0